[Event "World Junior U20 Girls 2018"]
[Site "Gebze"]
[Date "2018.09.11"]
[Round "7"]
[White "Isha Sharma"]
[Black "Schneider, Jana"]
[Result "1-0"]
[ECO "C54"]
[WhiteElo "2012"]
[BlackElo "2190"]
[Annotator "NA"]
[PlyCount "77"]
[EventDate "2018.09.05"]
[EventType "swiss"]
[EventCountry "TUR"]
[SourceTitle "playchess.com"]
[Source "ChessBase"]
[SourceQuality "1"]
[TimeControl "40/5400+30:1800+30"]

1. e4 {[%emt 0:00:30]} e5 {[%emt 0:00:30]} 2. Nf3 {[%emt 0:00:00]} Nc6 {[%emt 0:00:30]} 3. Bc4 {[%emt 0:00:00]} Bc5 {[%emt 0:00:00]} 4. c3 {[%emt 0:00:30]} Nf6 {[%emt 0:00:00]} 5. d3 {[%emt 0:00:00]} d6 {[%emt 0:02:30]} 6. Nbd2 {[%emt 0:00:00]} O-O {[%emt 0:01:30]} 7. Nf1 {[%emt 0:04:30]} d5 {[%emt 0:05:30]} 8. exd5 {[%emt 0:01:30]} Nxd5 {[%emt 0:00:00]} 9. Ng3 {[%emt 0:00:00]} Kh8 {[%emt 0:04:00]} 10. O-O {[%emt 0:04:00]} f6 {[%emt 0:10:30]} 11. Re1 {[%emt 0:03:30]} a6 {[%emt 0:05:30]} 12. Bb3 {[%emt 0:00:30]} Ba7 {[%emt 0:03:30]} 13. d4 {[%emt 0:08:30]} exd4 {[%emt 0:01:30]} 14. Nh4 {[%emt 0:00:30]} (14. cxd4 $11 Nce7 15. h3) 14... Nde7 {[%emt 0:06:30]} 15. Bc2 {[%emt 0:06:30]} f5 {[%emt 0:07:30]} 16. Bg5 {[%emt 0:03:30]} Qd6 $1 {[%emt 0:07:30]} 17. Qh5 $11 {[%emt 0:02:30]} d3 {[%emt 0:12:30]} 18. Rad1 {[%emt 0:05:30]} Ne5 {[%emt 0:00:30]} 19. Bxe7 {[%emt 0:00:30]} Qxe7 {[%emt 0:00:30]} 20. Rxe5 {[%emt 0:00:30]} Qxe5 {[%emt 0:00:30]} 21. Ng6+ {[%emt 0:00:30]} Kg8 {[%emt 0:00:30]} 22. Nxe5 {[%emt 0:00:30]} dxc2 {[%emt 0:00:30]} 23. Rc1 {[%emt 0:00:30]} f4 {[%emt 0:07:30]} 24. Ne4 {[%emt 0:09:30]} Bf5 {[%emt 0:00:30]} 25. Qe2 {[%emt 0:00:00]} b5 {[%emt 0:02:37]} 26. Qxc2 {[%emt 0:12:00]} Rae8 {[%emt 0:01:14]} 27. Qb3+ {[%emt 0:01:30]} Be6 {[%emt 0:00:08]} 28. Qa3 {[%emt 0:00:00]} Bf5 {[%emt 0:01:46]} 29. Nc6 {[%emt 0:01:00]} Be3 {[%emt 0:03:42]} 30. fxe3 {[%emt 0:07:30]} Bxe4 {[%emt 0:00:30]} 31. Qc5 {[%emt 0:01:30]} fxe3 {[%emt 0:00:23]} 32. Re1 {[%emt 0:03:30]} Rf2 {[%emt 0:01:20]} 33. Rxe3 {[%emt 0:00:30]} Rxg2+ {[%emt 0:01:09]} 34. Kf1 {[%emt 0:00:30]} Rf8+ {[%emt 0:00:25]} 35. Ke1 {[%emt 0:00:30]} Rg1+ {[%emt 0:02:33]} 36. Kd2 {[%emt 0:00:00]} Rg2+ {[%emt 0:03:47]} 37. Re2 {[%emt 0:00:00]} Bxc6 {[%emt 0:00:06]} 38. Qxc6 {[%emt 0:00:30]} Rd8+ {[%emt 0:00:06]} 39. Ke1 {[%emt 0:00:00]} 1-0

[Event "World Junior U20 Girls 2018"]
[Site "Gebze"]
[Date "2018.09.11"]
[Round "7"]
[White "Kamalidenova, Meruert"]
[Black "Aksoy, Ayca"]
[Result "0-1"]
[ECO "B76"]
[WhiteElo "2011"]
[BlackElo "1898"]
[Annotator "NA"]
[PlyCount "76"]
[EventDate "2018.09.05"]
[EventType "swiss"]
[EventCountry "TUR"]
[SourceTitle "playchess.com"]
[Source "ChessBase"]
[SourceQuality "1"]
[TimeControl "40/5400+30:1800+30"]

1. e4 {[%emt 0:00:30]} c5 {[%emt 0:00:30]} 2. Nf3 {[%emt 0:00:00]} g6 {[%emt 0:02:30]} 3. d4 {[%emt 0:00:00]} cxd4 {[%emt 0:00:30]} 4. Nxd4 {[%emt 0:01:30]} Nf6 {[%emt 0:02:30]} 5. Nc3 {[%emt 0:01:30]} d6 {[%emt 0:00:30]} 6. Be3 {[%emt 0:00:30]} Bg7 {[%emt 0:00:30]} 7. f3 {[%emt 0:00:30]} Nc6 {[%emt 0:01:30]} 8. Qd2 {[%emt 0:00:30]} Nxd4 {[%emt 0:03:30]} 9. Bxd4 {[%emt 0:00:00]} O-O {[%emt 0:01:30]} 10. g4 {[%emt 0:03:00]} a6 {[%emt 0:14:30] B76: Sicilian Dragon: Yugoslav Attack, 9 g4 and 9 0-0-0} (10... Be6 $14 11. h4 Qa5 12. h5 Rfc8 13. a3 Rab8 14. hxg6 hxg6 15. Bd3 Bc4 16. O-O-O b5 17. Bxc4 Rxc4 18. Bxf6 Bxf6 19. Nd5 Qxd2+ 20. Rxd2 Kg7 {1-0 (66) Vocaturo,D (2598)-Grigoryan,K (2584) Barcelona 2017}) 11. h4 {[%emt 0:02:30]} e5 {[%emt 0:08:30]} 12. Be3 {[%emt 0:01:30]} Be6 {[%emt 0:02:30]} 13. O-O-O {[%emt 0:04:30]} Qa5 $146 {[%emt 0:01:30]} ({Predecessor:} 13... Ne8 14. h5 Rc8 15. Nd5 Bxd5 16. Qxd5 Qc7 17. Rd2 {1-0 (38) Claussen,S (1705)-Diekmann,A Hockenheim 1994}) 14. Qxd6 {[%emt 0:02:30]} Nd7 {[%emt 0:08:30]} 15. a3 {[%emt 0:04:30]} Rfc8 {[%emt 0:04:30]} 16. Qd2 {[%emt 0:03:30]} Bf8 {[%emt 0:01:30]} 17. Nb1 {[%emt 0:11:30]} Qa4 {[%emt 0:00:30]} 18. Bd3 {[%emt 0:02:30]} Nc5 {[%emt 0:05:30]} 19. Bxc5 {[%emt 0:02:30]} Rxc5 {[%emt 0:00:30]} 20. Qg2 {[%emt 0:05:30]} (20. Nc3 $11 Qd4 21. Bf1 Qxd2+ 22. Rxd2) 20... Rac8 {[%emt 0:01:30]} 21. Rd2 {[%emt 0:00:30]} R5c7 {[%emt 0:00:30]} 22. Kd1 {[%emt 0:00:30]} b5 {[%emt 0:08:30]} 23. Ke2 {[%emt 0:13:30]} Bc4 {[%emt 0:03:30]} 24. Bxc4 {[%emt 0:05:30]} Qxc4+ {[%emt 0:01:30]} 25. Kf2 {[%emt 0:02:30]} Bc5+ {[%emt 0:04:30]} 26. Kg3 {[%emt 0:01:30]} Be3 {[%emt 0:01:30]} 27. Re2 {[%emt 0:01:30]} Bf4+ {[%emt 0:00:30]} 28. Kh3 {[%emt 0:00:30]} Qa2 {[%emt 0:00:45]} 29. c3 {[%emt 0:02:30]} Rd8 {[%emt 0:00:15]} 30. Rc2 {[%emt 0:02:30]} Qb3 {[%emt 0:01:42]} 31. Qe2 {[%emt 0:02:30]} Rcd7 {[%emt 0:00:31]} 32. Rf1 {[%emt 0:02:30]} Rd3 {[%emt 0:00:18]} 33. a4 $19 {[%emt 0:05:57]} (33. c4) 33... Qxa4 {[%emt 0:02:40]} 34. Qg2 {[%emt 0:06:15]} Qxe4 {[%emt 0:02:09]} 35. Re2 {[%emt 0:02:56]} Qc6 {[%emt 0:02:40]} 36. c4 {[%emt 0:04:24]} e4 {[%emt 0:02:23]} 37. Ref2 {[%emt 0:00:50]} Qxc4 {[%emt 0:01:37]} 38. Nc3 {[%emt 0:02:12]} Qc6 {[%emt 0:04:37]} 0-1

[Event "World Junior U20 Girls 2018"]
[Site "Gebze"]
[Date "2018.09.11"]
[Round "7"]
[White "Hu, Yu A"]
[Black "Nassr, Lina"]
[Result "1/2-1/2"]
[ECO "B45"]
[WhiteElo "2009"]
[BlackElo "1854"]
[Annotator "NA"]
[PlyCount "72"]
[EventDate "2018.09.05"]
[EventType "swiss"]
[EventCountry "TUR"]
[SourceTitle "playchess.com"]
[Source "ChessBase"]
[SourceQuality "1"]
[TimeControl "40/5400+30:1800+30"]

1. e4 {[%emt 0:00:30]} c5 {[%emt 0:00:30]} 2. Nf3 {[%emt 0:00:00]} e6 {[%emt 0:00:30]} 3. d4 {[%emt 0:00:00]} cxd4 {[%emt 0:00:00]} 4. Nxd4 {[%emt 0:00:30]} Nf6 {[%emt 0:00:00]} 5. Nc3 {[%emt 0:00:00]} Nc6 {[%emt 0:00:00]} 6. Ndb5 {[%emt 0:00:00]} Bc5 {[%emt 0:01:00]} 7. Bf4 {[%emt 0:02:30]} O-O {[%emt 0:00:30] B45: Sicilian Four Knights} 8. Bd6 {[%emt 0:10:30]} Qb6 {[%emt 0:01:30]} 9. Qd2 {[%emt 0:12:30]} Bxd6 {[%emt 0:03:30]} 10. Nxd6 {[%emt 0:00:30]} Qxb2 {[%emt 0:05:30]} 11. Rb1 {[%emt 0:00:30]} Qa3 {[%emt 0:00:30]} 12. Rb5 $146 {[%emt 0:05:30]} ({Predecessor:} 12. f4 Ne8 13. Nxb7 Qe7 14. e5 f6 15. exf6 gxf6 {1-0 (78) Abdulla,K (2266)-Schleining,Z (2375) Chakvi 2015}) 12... a6 {[%emt 0:09:30]} 13. Rg5 {[%emt 0:05:30] [#]} Ne8 $1 {[%emt 0:08:30]} 14. Nc4 {[%emt 0:05:30] [#]} Qe7 $1 {[%emt 0:01:30]} 15. e5 {[%emt 0:00:30]} (15. Nb6 $17 {might work better.} Rb8 16. Be2) 15... b5 {[%emt 0:02:30]} 16. Nb6 {[%emt 0:03:30]} Rb8 {[%emt 0:01:30]} 17. Nxc8 {[%emt 0:00:30]} Rxc8 {[%emt 0:00:00]} 18. Bd3 {[%emt 0:00:00]} f5 {[%emt 0:08:00]} 19. exf6 {[%emt 0:02:00]} Nxf6 {[%emt 0:02:30]} 20. O-O {[%emt 0:01:30]} Nb4 {[%emt 0:02:30]} 21. Be2 $2 {[%emt 0:02:30]} (21. Ne2) 21... Nxa2 {[%emt 0:07:30]} 22. Nxa2 {[%emt 0:00:30]} Ne4 {[%emt 0:00:30]} 23. Rxg7+ {[%emt 0:00:30]} Qxg7 {[%emt 0:00:30]} 24. Qe3 {[%emt 0:10:30]} Nc3 {[%emt 0:07:30]} 25. Nxc3 {[%emt 0:00:30]} Rxc3 {[%emt 0:00:00]} 26. Bd3 {[%emt 0:00:00]} b4 {[%emt 0:02:00]} 27. f4 {[%emt 0:00:00]} Ra3 {[%emt 0:10:30]} 28. Rf3 {[%emt 0:01:30]} Kh8 {[%emt 0:03:30]} 29. Qe4 {[%emt 0:14:30]} Rg8 {[%emt 0:09:53]} 30. Rg3 {[%emt 0:05:50]} Qa1+ {[%emt 0:00:43]} 31. Kf2 {[%emt 0:00:21]} Rxd3 {[%emt 0:00:42]} 32. Rxd3 {[%emt 0:00:19]} Qg7 {[%emt 0:01:13]} 33. Rg3 $11 {[%emt 0:01:31]} Qb2 {[%emt 0:01:52]} 34. Rb3 {[%emt 0:00:34]} Qf6 {[%emt 0:02:17]} 35. Rxb4 {[%emt 0:00:58]} d5 {[%emt 0:02:25]} 36. Qe3 {[%emt 0:03:06]} Rc8 {[%emt 0:00:47]} 1/2-1/2

[Event "World Junior U20 Girls 2018"]
[Site "Gebze"]
[Date "2018.09.11"]
[Round "7"]
[White "Stanciu, Ioana-Georgiana"]
[Black "Serikbay, Assel"]
[Result "0-1"]
[ECO "B40"]
[WhiteElo "2000"]
[BlackElo "2125"]
[Annotator "ChessBase"]
[PlyCount "82"]
[EventDate "2018.09.05"]
[EventType "swiss"]
[EventCountry "TUR"]
[SourceTitle "playchess.com"]
[Source "ChessBase"]
[SourceQuality "1"]
[TimeControl "40/5400+30:1800+30"]

1. e4 {[%emt 0:00:30]} c5 {[%emt 0:00:30]} 2. Nf3 {[%emt 0:00:30]} e6 {[%emt 0:00:00]} 3. g3 {[%emt 0:00:00]} d5 {[%emt 0:01:00]} 4. exd5 {[%emt 0:02:00]} exd5 {[%emt 0:00:30]} 5. d4 {[%emt 0:00:30]} Nf6 {[%emt 0:00:30]} 6. Bg2 {[%emt 0:01:30]} Be7 {[%emt 0:01:30]} 7. O-O {[%emt 0:01:30]} O-O {[%emt 0:00:30]} 8. h3 {[%emt 0:01:30]} Nc6 {[%emt 0:02:30]} 9. Nc3 {[%emt 0:00:30]} h6 {[%emt 0:03:30]} 10. Bf4 {[%emt 0:03:30]} Be6 {[%emt 0:09:30]} 11. Re1 {[%emt 0:10:30]} Rc8 {[%emt 0:03:30]} 12. Qd2 {[%emt 0:05:30]} cxd4 {[%emt 0:25:30]} 13. Nxd4 {[%emt 0:00:30]} Nxd4 {[%emt 0:00:30]} 14. Qxd4 {[%emt 0:00:30]} Bc5 {[%emt 0:14:30]} 15. Qd2 {[%emt 0:00:00]} Qd7 {[%emt 0:02:30]} 16. Be5 {[%emt 0:08:00]} Be7 {[%emt 0:01:30]} 17. g4 {[%emt 0:05:30]} Rfd8 {[%emt 0:01:30]} 18. Rad1 {[%emt 0:00:30]} b5 {[%emt 0:00:30]} 19. a3 {[%emt 0:00:30]} a5 {[%emt 0:07:30]} 20. g5 {[%emt 0:09:30]} hxg5 {[%emt 0:02:30]} 21. Qxg5 {[%emt 0:00:00]} Ne8 {[%emt 0:02:09]} 22. Qh5 {[%emt 0:03:00]} Qb7 {[%emt 0:02:00]} 23. Rd3 {[%emt 0:22:30]} b4 {[%emt 0:02:41]} 24. axb4 {[%emt 0:00:30]} axb4 {[%emt 0:00:00]} 25. Ne4 {[%emt 0:00:30]} f6 {[%emt 0:01:25]} 26. Bd4 {[%emt 0:04:58]} Bf7 {[%emt 0:00:38]} 27. Qh4 {[%emt 0:00:34]} dxe4 {[%emt 0:03:09]} 28. Bxe4 {[%emt 0:08:33]} f5 {[%emt 0:00:29]} 29. Bxb7 {[%emt 0:01:15]} Bxh4 {[%emt 0:00:30]} 30. Bxc8 {[%emt 0:00:30]} Rxc8 {[%emt 0:00:00]} 31. c3 {[%emt 0:01:30]} b3 {[%emt 0:00:00]} 32. Be5 {[%emt 0:04:08]} Nf6 {[%emt 0:05:34]} 33. Bg3 {[%emt 0:01:57]} Bg5 {[%emt 0:01:19]} 34. Re5 {[%emt 0:00:38]} Bc1 {[%emt 0:00:52]} 35. Re2 {[%emt 0:00:32]} Bc4 {[%emt 0:00:45]} 36. Rdd2 {[%emt 0:01:37]} Bxe2 {[%emt 0:01:14]} 37. Rxe2 {[%emt 0:00:01]} Ne4 {[%emt 0:03:25]} 38. Be5 {[%emt 0:00:21]} Nc5 {[%emt 0:01:21]} 39. c4 {[%emt 0:02:27]} Nd3 {[%emt 0:01:06]} 40. Bd4 {[%emt 0:00:00]} Rxc4 {[%emt 0:00:00]} 41. Be3 {[%emt 0:03:59]} Nxb2 {[%emt 0:05:53]} 0-1

[Event "World Junior U20 Girls 2018"]
[Site "Gebze"]
[Date "2018.09.11"]
[Round "7"]
[White "Nemcova, Karin"]
[Black "Heydarova, Aytaj"]
[Result "0-1"]
[ECO "B77"]
[WhiteElo "1990"]
[BlackElo "1948"]
[Annotator "NA"]
[PlyCount "54"]
[EventDate "2018.09.05"]
[EventType "swiss"]
[EventCountry "TUR"]
[SourceTitle "playchess.com"]
[Source "ChessBase"]
[SourceQuality "1"]
[TimeControl "40/5400+30:1800+30"]

1. e4 {[%emt 0:00:30]} c5 {[%emt 0:00:30]} 2. Nf3 {[%emt 0:00:30]} d6 {[%emt 0:00:30]} 3. d4 {[%emt 0:00:30]} cxd4 {[%emt 0:00:00]} 4. Nxd4 {[%emt 0:00:00]} Nf6 {[%emt 0:00:00]} 5. Nc3 {[%emt 0:00:00]} g6 {[%emt 0:00:00]} 6. Be3 {[%emt 0:00:00]} Bg7 {[%emt 0:00:00]} 7. f3 {[%emt 0:00:00]} Nc6 {[%emt 0:00:30]} 8. Qd2 {[%emt 0:00:00]} O-O {[%emt 0:00:00]} 9. Bc4 {[%emt 0:00:00]} a6 {[%emt 0:02:00]} 10. O-O-O {[%emt 0:02:30]} Nxd4 {[%emt 0:02:30]} 11. Bxd4 {[%emt 0:00:30]} Be6 {[%emt 0:00:30] B77: Sicilian Dragon: Yugoslav Attack, 9 Bc4 sidelines} (11... b5 12. Bb3 Bb7 13. h4 a5 14. Nxb5 a4 15. Bc4 Ba6 16. Na3 Qc8 17. Bxa6 Rxa6 18. g4 Rc6 19. g5 Nh5 20. Bxg7 Nxg7 {1-0 (49) Blaskowski,J (2287)-Schuette,M (2267) Bayern 2009}) 12. Nd5 {[%emt 0:03:30]} Bxd5 {[%emt 0:00:30]} 13. Bxd5 $146 {[%emt 0:00:30]} ({Predecessor:} 13. Bxf6 Bxc4 14. Bxg7 Kxg7 15. Qd4+ Kg8 16. Qxc4 Rc8 17. Qb3 Qc7 {½-½ (17) Toth,P (1799)-Pilisi,L (2019) Senta 2010}) 13... Qc7 {[%emt 0:04:30]} 14. h4 {[%emt 0:03:30]} Rac8 {[%emt 0:06:30]} 15. Bb3 {[%emt 0:02:30]} b5 {[%emt 0:21:30]} 16. h5 {[%emt 0:13:30]} Rfd8 {[%emt 0:13:30]} 17. hxg6 {[%emt 0:01:30]} hxg6 {[%emt 0:00:00]} 18. Bxf6 {[%emt 0:09:30]} (18. Kb1 $18) 18... Bxf6 {[%emt 0:09:00]} 19. Qh6 {[%emt 0:10:30]} e6 {[%emt 0:06:30]} 20. Qd2 {[%emt 0:15:30]} d5 {[%emt 0:01:30]} 21. f4 {[%emt 0:04:30]} dxe4 {[%emt 0:02:30]} 22. Qe3 {[%emt 0:00:30]} a5 {[%emt 0:07:30]} 23. a4 {[%emt 0:07:30]} bxa4 {[%emt 0:04:43]} 24. Bxa4 $19 {[%emt 0:00:00]} Rd3 {[%emt 0:08:36]} 25. Rxd3 {[%emt 0:12:30]} exd3 {[%emt 0:00:06]} 26. Qe4 {[%emt 0:06:59]} dxc2 {[%emt 0:02:11]} 27. Bxc2 {[%emt 0:01:03]} Rb8 {[%emt 0:03:14]} 0-1

[Event "World Junior U20 Girls 2018"]
[Site "Gebze"]
[Date "2018.09.11"]
[Round "7"]
[White "Aubert, Laurane"]
[Black "Caglar, Sila"]
[Result "0-1"]
[ECO "B23"]
[WhiteElo "1970"]
[BlackElo "2208"]
[Annotator "ChessBase"]
[PlyCount "76"]
[EventDate "2018.09.05"]
[EventType "swiss"]
[EventCountry "TUR"]
[SourceTitle "playchess.com"]
[Source "ChessBase"]
[SourceQuality "1"]
[TimeControl "40/5400+30:1800+30"]

1. e4 {[%emt 0:00:30]} c5 {[%emt 0:00:30]} 2. Nc3 {[%emt 0:00:30]} d6 {[%emt 0:00:00]} 3. f4 {[%emt 0:00:00]} g6 {[%emt 0:00:00]} 4. Nf3 {[%emt 0:00:00]} Bg7 {[%emt 0:00:30]} 5. Bc4 {[%emt 0:00:00]} Nc6 {[%emt 0:00:30]} 6. O-O {[%emt 0:01:00]} e6 {[%emt 0:00:30]} 7. f5 {[%emt 0:06:30]} gxf5 {[%emt 0:03:30]} 8. d3 {[%emt 0:06:30]} Nge7 {[%emt 0:01:30]} 9. Ng5 {[%emt 0:03:30]} Ne5 {[%emt 0:20:30]} 10. Bb3 {[%emt 0:08:30]} h6 {[%emt 0:04:30]} 11. Nh3 {[%emt 0:11:30]} Bd7 {[%emt 0:10:30]} 12. Nf4 {[%emt 0:14:30]} Qb6 {[%emt 0:06:30]} 13. Nh5 {[%emt 0:10:30]} Rg8 {[%emt 0:00:30]} 14. Qe1 {[%emt 0:08:30]} fxe4 {[%emt 0:14:30]} 15. dxe4 {[%emt 0:04:30]} c4+ {[%emt 0:05:30]} 16. Be3 {[%emt 0:00:30]} Qa6 {[%emt 0:01:30]} 17. Qh4 {[%emt 0:06:07]} cxb3 {[%emt 0:04:30]} 18. axb3 {[%emt 0:02:46]} Qc6 {[%emt 0:00:30]} 19. Bxh6 {[%emt 0:01:53]} Bh8 {[%emt 0:04:38]} 20. Bg5 {[%emt 0:09:00]} Qc5+ {[%emt 0:01:34]} 21. Kh1 {[%emt 0:00:05]} Nf3 {[%emt 0:00:56]} 22. Rxf3 {[%emt 0:01:39]} Qxg5 {[%emt 0:00:48]} 23. Qxg5 {[%emt 0:01:14]} Rxg5 {[%emt 0:00:08]} 24. Nf4 {[%emt 0:00:33]} Ng6 {[%emt 0:00:49]} 25. Nh3 {[%emt 0:01:00]} Rc5 {[%emt 0:00:10]} 26. Raf1 {[%emt 0:00:51]} f5 {[%emt 0:03:12]} 27. Rg3 {[%emt 0:00:48]} Ne7 {[%emt 0:00:26]} 28. exf5 {[%emt 0:00:25]} Rxf5 {[%emt 0:00:29]} 29. Rd1 {[%emt 0:00:56]} Be5 {[%emt 0:00:18]} 30. Re3 {[%emt 0:00:00]} O-O-O {[%emt 0:00:50]} 31. Ne4 {[%emt 0:00:24]} Bc6 {[%emt 0:01:38]} 32. Ng3 {[%emt 0:00:33]} Rf6 {[%emt 0:01:27]} 33. Red3 {[%emt 0:00:43]} Rdf8 {[%emt 0:00:28]} 34. c3 {[%emt 0:00:23]} Nf5 {[%emt 0:00:27]} 35. Ne2 {[%emt 0:00:34]} Nh4 {[%emt 0:00:40]} 36. Rg1 {[%emt 0:00:26]} Rf1 {[%emt 0:00:00]} 37. Nhf4 {[%emt 0:00:36]} Bxf4 {[%emt 0:01:12]} 38. Rxf1 {[%emt 0:00:49]} Bxg2+ {[%emt 0:00:07]} 0-1

[Event "World Junior U20 Girls 2018"]
[Site "Gebze"]
[Date "2018.09.11"]
[Round "7"]
[White "Vujcic, Milena"]
[Black "Incecik, Seyma Zeynep"]
[Result "0-1"]
[ECO "B01"]
[WhiteElo "1955"]
[BlackElo "1716"]
[Annotator "NA RC"]
[PlyCount "74"]
[EventDate "2018.09.05"]
[EventType "swiss"]
[EventCountry "TUR"]
[SourceTitle "playchess.com"]
[Source "ChessBase"]
[SourceQuality "1"]
[TimeControl "40/5400+30:1800+30"]

1. e4 {[%emt 0:00:30]} d5 {[%emt 0:00:30]} 2. exd5 {[%emt 0:00:30]} Qxd5 {[%emt 0:00:30]} 3. Nc3 {[%emt 0:00:00]} Qa5 {[%emt 0:00:00]} 4. d4 {[%emt 0:00:00]} c6 {[%emt 0:00:00]} 5. Nf3 {[%emt 0:00:00]} Nf6 {[%emt 0:00:00]} 6. Bc4 {[%emt 0:00:00]} Bf5 {[%emt 0:00:00]} 7. Bd2 {[%emt 0:00:30]} e6 {[%emt 0:00:30]} 8. Nd5 {[%emt 0:00:30]} Qd8 {[%emt 0:00:30]} 9. Nxf6+ {[%emt 0:00:30]} gxf6 {[%emt 0:00:00]} 10. Qe2 {[%emt 0:00:30]} Qc7 {[%emt 0:01:00]} 11. O-O-O {[%emt 0:06:30]} Nd7 $14 {[%emt 0:03:30]} 12. Nh4 {[%emt 0:03:30]} Bg6 {[%emt 0:01:30]} 13. f4 {[%emt 0:08:30]} f5 {[%emt 0:02:30]} 14. Rhe1 {[%emt 0:12:30]} O-O-O {[%emt 0:00:30]} 15. Bb3 {[%emt 0:11:30]} Be7 {[%emt 0:06:30]} 16. Nf3 {[%emt 0:01:30]} Bh5 {[%emt 0:01:30]} 17. h3 {[%emt 0:04:30]} Bh4 {[%emt 0:17:30]} 18. Rf1 {[%emt 0:04:30]} Bg3 {[%emt 0:02:30]} 19. Qe3 {[%emt 0:01:30]} Nf8 {[%emt 0:02:30]} 20. Ne5 {[%emt 0:13:30]} Bxd1 {[%emt 0:00:30]} 21. Qxg3 {[%emt 0:00:30]} Bh5 {[%emt 0:00:30]} 22. Qg7 {[%emt 0:07:30]} Nd7 {[%emt 0:11:30]} 23. Nxd7 {[%emt 0:00:30]} Qxd7 {[%emt 0:00:30]} 24. Bc3 {[%emt 0:02:30]} c5 {[%emt 0:01:30]} 25. g4 {[%emt 0:03:19]} cxd4 {[%emt 0:03:30]} 26. Rd1 {[%emt 0:02:37]} Qc7 {[%emt 0:06:30]} 27. Bd2 {[%emt 0:07:12]} fxg4 {[%emt 0:01:30]} 28. hxg4 {[%emt 0:01:02]} Rhg8 {[%emt 0:00:30]} 29. Qxh7 {[%emt 0:01:07]} Bg6 {[%emt 0:02:30]} 30. Qh2 {[%emt 0:00:04]} Bxc2 {[%emt 0:01:30]} 31. Bxc2 {[%emt 0:00:30]} d3 {[%emt 0:00:30]} 32. Bc3 {[%emt 0:00:00]} dxc2 {[%emt 0:00:00]} 33. Kxc2 {[%emt 0:00:00]} Rxd1 {[%emt 0:00:00]} 34. Kxd1 {[%emt 0:00:00]} Rxg4 {[%emt 0:00:30]} 35. Be5 {[%emt 0:00:09]} Qc4 {[%emt 0:03:30]} 36. Qf2 {[%emt 0:01:30]} Qd5+ {[%emt 0:00:30]} 37. Ke1 {[%emt 0:00:13]} Qh1+ {[%emt 0:00:30]} 0-1

[Event "World Junior U20 Girls 2018"]
[Site "Gebze"]
[Date "2018.09.11"]
[Round "7"]
[White "Kyrkjebo, Hanna B"]
[Black "Ozbay, Ece"]
[Result "0-1"]
[ECO "B40"]
[WhiteElo "1947"]
[BlackElo "2114"]
[Annotator "ChessBase"]
[PlyCount "66"]
[EventDate "2018.09.05"]
[EventType "swiss"]
[EventCountry "TUR"]
[SourceTitle "playchess.com"]
[Source "ChessBase"]
[SourceQuality "1"]
[TimeControl "40/5400+30:1800+30"]

1. e4 {[%emt 0:00:30]} c5 {[%emt 0:00:30]} 2. Nf3 {[%emt 0:00:30]} e6 {[%emt 0:00:30]} 3. b3 {[%emt 0:00:00]} b6 {[%emt 0:00:00]} 4. Bd3 {[%emt 0:00:00]} Bb7 {[%emt 0:00:00]} 5. O-O {[%emt 0:00:30]} d6 {[%emt 0:03:30]} 6. Bb2 {[%emt 0:02:30]} Nf6 {[%emt 0:00:30]} 7. e5 {[%emt 0:04:30]} dxe5 {[%emt 0:00:30]} 8. Nxe5 {[%emt 0:01:30]} Bd6 {[%emt 0:03:30]} 9. Bb5+ {[%emt 0:10:30]} Nbd7 {[%emt 0:02:30]} 10. Re1 {[%emt 0:01:30]} Qc7 {[%emt 0:00:30]} 11. Qe2 {[%emt 0:14:30]} O-O {[%emt 0:07:30]} 12. Na3 {[%emt 0:04:30]} a6 {[%emt 0:08:30]} 13. Bd3 {[%emt 0:06:30]} Nd5 {[%emt 0:04:30]} 14. Qh5 {[%emt 0:19:30]} g6 {[%emt 0:09:30]} 15. Ng4 {[%emt 0:03:30]} e5 {[%emt 0:05:30]} 16. Qh6 {[%emt 0:11:47]} f5 {[%emt 0:07:30]} 17. Ne3 {[%emt 0:00:57]} Nxe3 {[%emt 0:01:30]} 18. Rxe3 {[%emt 0:01:59]} b5 {[%emt 0:00:30]} 19. Rg3 {[%emt 0:01:40]} Nb6 {[%emt 0:05:30]} 20. f3 {[%emt 0:05:42]} Nd5 {[%emt 0:03:30]} 21. Rxg6+ {[%emt 0:05:23]} hxg6 {[%emt 0:00:30]} 22. Qxg6+ {[%emt 0:00:07]} Qg7 {[%emt 0:00:00]} 23. Qe6+ {[%emt 0:00:48]} Rf7 {[%emt 0:08:00]} 24. Qxd6 {[%emt 0:00:52]} Nf4 {[%emt 0:00:00]} 25. g3 {[%emt 0:01:48]} Nh3+ {[%emt 0:07:00]} 26. Kf1 {[%emt 0:00:41]} Re8 {[%emt 0:00:30]} 27. Be2 {[%emt 0:00:29]} f4 {[%emt 0:01:30]} 28. g4 {[%emt 0:00:31]} Qg5 {[%emt 0:02:17]} 29. Qxc5 {[%emt 0:00:31]} Qh4 {[%emt 0:00:40]} 30. Qb6 {[%emt 0:00:31]} Re6 {[%emt 0:01:22]} 31. Qc5 {[%emt 0:00:27]} Rc6 {[%emt 0:00:25]} 32. Qa7 {[%emt 0:00:47]} Bc8 {[%emt 0:00:01]} 33. Qa8 {[%emt 0:00:42]} Qf2# {[%emt 0:00:07]} 0-1